lending/lending_fUSD_20250303
["ID","MTS","AMOUNT","RATE_DAILY","PERIOD"]
[355194268,1740986118542,150.0,0.00014686,2]
[355194269,1740986118580,150.0,0.00014835,2]
[355194270,1740986118613,150.0,0.0001474,2]
[355194271,1740986118646,150.0,0.00014759,2]
[355194272,1740986118681,150.0,0.00014848,2]
[355194273,1740986118714,150.0,0.00014825,2]
[355194274,1740986118748,150.0,0.00014629,2]
[355194275,1740986118794,150.0,0.0001477,2]
[355194276,1740986118849,150.0,0.00014714,2]
[355194277,1740986118894,150.0,0.00014723,2]
[355194278,1740986118965,150.0,0.0001483,2]
[355194279,1740986120843,407.30484608,0.000148,2]
[355194280,1740986123650,200.0,0.00014178,2]
[355194281,1740986125687,150.0,0.0001466,2]
[355194282,1740986125935,150.0,0.0001466,2]
[355194283,1740986126078,150.0,0.00014697,2]
[355194288,1740986169615,-150.0,0.00014852,2]
[355194291,1740986327670,433.30636765,0.00014669,2]
[355194292,1740986354437,1326.29,0.00014114,2]
[355194293,1740986407538,343.00808,0.0001485,2]
[355194295,1740986453899,500.0,0.00014157,2]
[355194296,1740986477369,150.0,0.00014727,2]
[355194297,1740986477432,150.0,0.00014814,2]
[355194298,1740986477485,150.0,0.00014771,2]
[355194299,1740986477686,150.0,0.00014744,2]
[355194300,1740986477901,150.0,0.00014731,2]
[355194301,1740986478033,250.97769301,0.0001472,2]
[355194302,1740986478074,150.0,0.00014836,2]
[355194303,1740986519678,2647.2723,0.000148,2]
[355194304,1740986559077,150.0,0.00013952,2]
[355194305,1740986560726,1000.0,0.00013952,2]
[355194307,1740986584559,750.35,0.00012033,2]
[355194308,1740986584751,750.35,0.00014297,2]
[355194309,1740986597262,150.0,0.00014714,2]
[355194310,1740986616356,250.0,0.00013958,2]
[355194311,1740986621599,250.0,0.00013,2]
[355194312,1740986644506,-150.0,0.00014859,2]
[355194313,1740986704575,-150.0,0.00014859,2]
[355194314,1740986723008,251.63586785,0.000148,2]
[355194315,1740986755703,620.97098,0.0001485,2]
[355194317,1740986762325,-150.0,0.00014859,2]
[355194322,1740986777162,150.0,0.00014749,2]
[355194323,1740986777201,150.0,0.0001473,2]
[355194324,1740986777313,150.0,0.00014818,2]
[355194325,1740986777367,150.0,0.00014789,2]
[355194326,1740986777409,150.0,0.000148,2]
[355194327,1740986777459,150.0,0.00014723,2]
[355194328,1740986777595,150.0,0.00014807,2]
[355194329,1740986777670,150.0,0.00014702,2]
[355194330,1740986777711,150.0,0.00014838,2]
[355194331,1740986777776,150.0,0.00014796,2]
[355194332,1740986777899,150.0,0.00014794,2]
[355194333,1740986782974,200.0,0.00013961,2]
[355194335,1740986809341,200.0,0.00013961,2]
[355194337,1740986823314,-150.0,0.00014859,2]
[355194339,1740986829570,433.30636765,0.00014762,2]
[355194340,1740986835214,205.0,9.8e-05,2]
[355194341,1740986836706,241.0,0.000148,2]
[355194342,1740986839732,249.59047086,0.000101,2]
[355194343,1740986846743,478.06022888,0.0001,2]
[355194344,1740986848742,184.55,0.0001451,2]
[355194350,1740986866772,23900.0,0.00013958,2]
[355194352,1740986877681,500.0,0.00013958,2]
[355194353,1740986881365,584.32775835,0.00014,2]
[355194354,1740986890687,150.33437047,0.0001,2]
[355194355,1740986893436,277.57,0.00013981,2]
[355194356,1740986893629,277.57,0.0001468,2]
[355194357,1740986897714,295.17690442,0.000125,2]
[355194358,1740986907251,376.13395592,7.888e-05,2]
[355194361,1740986913106,446.64569069,9.828e-05,2]
[355194362,1740986914595,215.00537618,0.0001,2]
[355194366,1740986921129,257.71317964,0.000107,2]
[355194367,1740986921395,2000.0,0.0001399,2]
[355194375,1740986925796,659.37506459,0.00010136,2]
[355194376,1740986976699,169.83,0.00011185,2]
[355194378,1740987004962,-150.0,0.0001486,2]
[355194388,1740987032512,-400.0,0.0001486,2]
[355194389,1740987032522,-150.0,0.00014861,2]
[355194390,1740987032531,-206.64015258,0.00014866,2]
[355194391,1740987032540,-150.0,0.00014876,2]
[355194392,1740987032550,-150.0,0.00014879,2]
[355194393,1740987032559,-150.0,0.00014879,2]
[355194394,1740987032569,-200.0,0.0001488,2]
[355194395,1740987032578,-150.0,0.00014886,2]
[355194396,1740987032587,-150.0,0.00014887,2]
[355194397,1740987032597,-282.02,0.00014887,2]
[355194398,1740987032606,-300.0,0.00014888,2]
[355194399,1740987032615,-150.0,0.00014889,2]
[355194400,1740987032624,-9999.99,0.00014889,2]
[355194401,1740987032633,-150.99,0.00014889,2]
[355194402,1740987032642,-784.79962958,0.00014899,2]
[355194403,1740987032652,-384.46,0.00014899,2]
[355194404,1740987032661,-643.836,0.00014899,2]
[355194405,1740987032670,-500.0,0.000149,2]
[355194406,1740987032680,-67969.38586286,0.000149,2]
[355194407,1740987032691,-17922.92693714,0.000149,2]
[355194408,1740987032700,-880.7117,0.000149,2]
[355194409,1740987032709,-1000.0,0.000149,2]
[355194410,1740987032720,-299.5491,0.000149,2]
[355194411,1740987032729,-2241.6306,0.000149,2]
[355194412,1740987032738,-496.91101557,0.000149,2]
[355194413,1740987032748,-651.6343,0.000149,2]
[355194414,1740987032757,-1009.31517678,0.000149,2]
[355194415,1740987032766,-16792.91075672,0.000149,2]
[355194416,1740987032777,-1652.29138339,0.000149,2]
[355194417,1740987032788,-4752.2,0.000149,2]
[355194418,1740987032807,-1607.2,0.000149,2]
[355194419,1740987032817,-14657.90786925,0.000149,2]
[355194420,1740987032829,-1185.56639971,0.000149,2]
[355194421,1740987032840,-5186.06402337,0.000149,2]
[355194422,1740987032852,-23632.72284368,0.000149,2]
[355194423,1740987032861,-150.0,0.00014906,2]
[355194424,1740987032870,-150.0,0.00014907,2]
[355194426,1740987032879,-150.0,0.00014908,2]
[355194427,1740987032889,-150.0,0.00014917,2]
[355194428,1740987032898,-150.0,0.00014922,2]
[355194429,1740987032907,-150.0,0.00014924,2]
[355194430,1740987033100,-150.0,0.0001493,2]
[355194431,1740987033127,-150.0,0.00014939,2]
[355194432,1740987033137,-150.0,0.00014956,2]
[355194433,1740987033146,-150.0,0.00014959,2]
[355194434,1740987033156,-150.0,0.00014959,2]
[355194435,1740987033165,-500.0,0.00014973,2]
[355194436,1740987033174,-14987.9032037,0.00014973,2]
[355194437,1740987033184,-7939.481825,0.00014996,2]
[355194438,1740987033197,-1498.244774,0.00014996,2]
[355194439,1740987033207,-227236.05377528,0.00015,2]
[355194440,1740987033222,-17259.14400613,0.00015,2]
[355194441,1740987033235,-2617.66474056,0.00015,2]
[355194442,1740987033246,-357.26208444,0.00015,2]
[355194443,1740987033258,-9757.12817506,0.00015,2]
[355194454,1740987038272,-1625.44440048,0.00015,2]
[355194456,1740987038286,-7579.32528866,0.00015,2]
[355194457,1740987038298,-260.58,0.00015,2]
[355194458,1740987038309,-29875.73441699,0.00015,2]
[355194459,1740987038433,-589.22609992,0.00015,2]
[355194460,1740987038445,-7496.75202674,0.00015,2]
[355194475,1740987040460,-309.48821019,0.000149,2]
[355194476,1740987040471,-3057.19454071,0.00015,2]
[355194477,1740987040482,-1072.18041976,0.00015,2]
[355194478,1740987040493,-342.65550001,0.00015,2]
[355194479,1740987040505,-670.18877666,0.00015,2]
[355194480,1740987040654,-1539.19634186,0.00015,2]
[355194481,1740987040665,-2378.00000003,0.00015,2]
[355194482,1740987040677,-3294.00533901,0.00015,2]
[355194483,1740987040688,-4930.9037663,0.00015,2]
[355194484,1740987040699,-607.46602351,0.00015,2]
[355194486,1740987040903,-917.25520469,0.00015,2]
[355194488,1740987040915,-1000.0,0.00015,2]
[355194521,1740987043483,-3447.51354814,0.00015,2]
[355194531,1740987043643,-4806.85711169,0.00015,2]
[355194533,1740987043657,-5189.4370075,0.00015,2]
[355194557,1740987046415,-2717.1631246,0.00015,2]
[355194558,1740987046431,-650.53847997,0.00015,2]
[355194559,1740987046446,-13377.10368632,0.00015,2]
[355194560,1740987046568,-18455.78,0.00015,2]
[355194561,1740987046582,-7525.97295206,0.00015,2]
[355194586,1740987103918,285.84007,0.0001485,2]
[355194587,1740987113604,1000.0,0.00014822,2]
[355194591,1740987317755,433.30636765,0.0001455,2]
[355194592,1740987363125,-150.0,0.0001488,2]
[355194596,1740987388307,483.61067825,0.00025,90]
[355194597,1740987422106,-50.0,0.0001488,2]
[355194598,1740987422128,-100.0,0.00014896,2]
[355194599,1740987470282,517.47581,0.0001485,2]
[355194600,1740987501660,1802.45,0.00025,90]
[355194603,1740987602740,-150.0,0.00014899,2]
[355194604,1740987662106,-150.0,0.00014899,2]
[355194605,1740987695274,675.31,0.00013473,2]
[355194606,1740987820639,433.30636765,0.00014764,2]
[355194607,1740987823759,238.20006,0.0001485,2]
[355194612,1740988091691,-5000000.0,0.00029102,45]
[355194614,1740988101591,-200.0,0.0001488,2]
[355194615,1740988101615,-550.0,0.0001489,2]
[355194616,1740988101638,-1100.2781,0.000149,2]
[355194617,1740988101661,-801.43324576,0.000149,2]
[355194618,1740988101682,-215.7206,0.000149,2]
[355194619,1740988101707,-341.48114,0.000149,2]
[355194620,1740988101730,-216.15791383,0.000149,2]
[355194621,1740988101751,-160.15904,0.00014973,2]
[355194622,1740988101772,-160.0,0.00014973,2]
[355194623,1740988101793,-160.19178586,0.00014973,2]
[355194624,1740988101814,-160.19178586,0.00014973,2]
[355194625,1740988101834,-160.03302035,0.00014973,2]
[355194626,1740988101856,-451.98488074,0.00014973,2]
[355194627,1740988101876,-160.19178585,0.00014973,2]
[355194628,1740988101897,-160.19021712,0.00014973,2]
[355194629,1740988101918,-500.0,0.00014973,2]
[355194630,1740988101939,-6381.17098231,0.0001499,2]
[355194631,1740988101962,-515.069,0.0001499,2]
[355194632,1740988101984,-307.568,0.0001499,2]
[355194633,1740988102006,-217.97537401,0.00014999,2]
[355194634,1740988102027,-10987.06050376,0.00014999,2]
[355194635,1740988102052,-80533.14262455,0.00015,2]
[355194636,1740988102982,-5000000.0,0.00029102,45]
[355194637,1740988106645,-5000000.0,0.00029102,45]
[355194638,1740988114419,-10000000.0,0.00029102,45]
[355194639,1740988117115,-10000000.0,0.00029102,45]
[355194640,1740988122258,-10000000.0,0.00029102,45]
[355194641,1740988131055,60959.79588635,0.00014,2]
[355194642,1740988132307,47894.40000053,0.000148,2]
[355194643,1740988134999,-9621152.43925208,0.00029102,45]
[355194644,1740988135024,-378847.56074792,0.00029102,45]
[355194646,1740988155267,500.0,0.000141,5]
[355194647,1740988157368,1000.0,0.000142,5]
[355194648,1740988159473,1600.0,0.000143,5]
[355194649,1740988161580,2100.0,0.000144,5]
[355194650,1740988163693,2700.0,0.000145,5]
[355194652,1740988165799,500.0,0.000146,5]
[355194653,1740988167900,500.0,0.000147,5]
[355194654,1740988170005,500.0,0.000148,5]
[355194655,1740988171266,431.22984,0.0001485,2]
[355194657,1740988214848,-216.15791383,0.000149,2]
[355194658,1740988214871,-2136.0683,0.000149,2]
[355194659,1740988214893,-500.0,0.000149,5]
[355194660,1740988214915,-524.22652351,0.000149,2]
[355194661,1740988214939,-550.0,0.000149,2]
[355194662,1740988214960,-900.0,0.000149,2]
[355194663,1740988214982,-300.0,0.00014959,2]
[355194664,1740988215003,-1208.72495416,0.0001496,10]
[355194665,1740988215023,-1464.90735118,0.0001496,2]
[355194666,1740988215044,-5178.0,0.00014986,2]
[355194667,1740988215251,-5487.92,0.0001499,2]
[355194668,1740988215273,-5487.92,0.0001499,2]
[355194669,1740988215296,-1805.19762328,0.00014999,5]
[355194670,1740988215321,-15970.87733404,0.00015,2]
[355194671,1740988220357,574.48039059,0.000148,2]
[355194679,1740988231665,-500.0,0.00014973,2]
[355194680,1740988231675,-190522.12133842,0.00015,2]
[355194681,1740988231685,-2849.70026158,0.00015,2]
[355194682,1740988231696,-81300.000005,0.00015,2]
[355194683,1740988231888,-455.27185961,0.00015,2]
[355194684,1740988231900,-909.12669,0.00015,2]
[355194685,1740988231912,-766.16752,0.00015,2]
[355194686,1740988231924,-814.25,0.00015,2]
[355194704,1740988237570,-2684.19912331,0.00015,2]
[355194741,1740988239576,-67104.6095,0.00015,2]
[355194745,1740988239970,-2290.54943173,0.00015,2]
[355194746,1740988239982,-342.20750121,0.00015,2]
[355194763,1740988242635,-299.51100518,0.00015,2]
[355194779,1740988245462,-346.84230637,0.00015,2]
[355194781,1740988245474,-554.5106607,0.00015,2]
[355194782,1740988245568,-3569.75999996,0.00015,2]
[355194783,1740988245781,-6684.22112025,0.00015,2]
[355194784,1740988245793,-650.77,0.00015,2]
[355194834,1740988316664,433.30636765,0.0001472,2]
[355194835,1740988382610,-150.0,0.00014899,2]
[355194836,1740988393669,-10000000.0,0.00029103,45]
[355194837,1740988398092,-10000000.0,0.00029103,45]
[355194838,1740988400208,-150.0,0.0001488,2]
[355194839,1740988441453,250.0,0.00013,2]
[355194840,1740988491757,-10000009.0,0.00028374,45]
[355194841,1740988531369,198.50005,0.0001485,2]
[355194844,1740988700721,641.54,0.00013261,2]
[355194845,1740988705276,200.0,0.000141,5]
[355194846,1740988707390,500.0,0.000142,5]
[355194847,1740988709486,700.0,0.000143,5]
[355194848,1740988712015,1000.0,0.000144,5]
[355194849,1740988713744,-10000004.0,0.00028374,45]
[355194850,1740988714123,1300.0,0.000145,5]
[355194851,1740988716232,200.0,0.000146,5]
[355194852,1740988717290,197660.38606978,0.000148,2]
[355194853,1740988718336,200.0,0.000147,5]
[355194854,1740988720442,200.0,0.000148,5]
[355194855,1740988790733,-150.0,0.00014854,2]
[355194856,1740988833578,310.34510915,0.00014781,2]
[355194857,1740988879681,359.3582,0.0001485,2]
[355194858,1740988884928,8500.0,0.00014847,2]
[355194859,1740988889127,1000.0,0.0001422,2]
[355194860,1740988903700,8500.0,0.00014838,2]
[355194861,1740988922909,8500.0,0.0001483,2]
[355194862,1740988942542,8500.0,0.00014821,2]
[355194863,1740988955929,-150.0,0.00014854,2]
[355194864,1740988961315,8500.0,0.00014812,2]
[355194865,1740988980160,8500.0,0.00014803,2]
[355194866,1740988998918,8500.0,0.00014794,2]
[355194867,1740989017312,2500.0,0.000148,2]
[355194868,1740989018531,8500.0,0.00014786,2]
[355194869,1740989019490,166.54,0.00014188,2]
[355194870,1740989032109,2000.0,0.00014172,2]
[355194871,1740989037297,8500.0,0.00014777,2]
[355194872,1740989056631,8500.0,0.00014768,2]
[355194874,1740989075447,8500.0,0.00014759,2]
[355194875,1740989093912,8500.0,0.0001475,2]
[355194876,1740989109145,57759.89486052,0.000148,2]
[355194877,1740989112787,8500.0,0.00014742,2]
[355194878,1740989116871,23900.0,0.00014176,2]
[355194879,1740989182131,-150.0,0.00014852,2]
[355194882,1740989212875,150.40100673,0.000147,2]
[355194883,1740989227723,1498.75004,0.0001485,2]
[355194884,1740989246716,361.24,0.00014179,2]
[355194885,1740989246928,361.24,0.00014261,2]
[355194886,1740989247189,361.24,0.00014343,2]
[355194887,1740989247401,361.24,0.00014425,2]
[355194888,1740989247599,361.24,0.00014507,2]
[355194889,1740989248183,361.24,0.00014589,2]
[355194890,1740989248224,361.24,0.00014671,2]
[355194891,1740989248266,361.24,0.00014754,2]
[355194892,1740989248457,361.24,0.00014836,2]
[355194893,1740989252382,262.35997733,0.00024,90]
[355194894,1740989255163,200.0,0.00014148,2]
[355194895,1740989288102,150.0,0.00014148,7]
[355194896,1740989304493,595.81496812,0.000148,2]
[355194897,1740989309425,200.0,0.00014148,2]
[355194898,1740989309513,595.81496807,0.00014811,2]
[355194899,1740989314504,595.81496807,0.00014822,2]
[355194900,1740989319596,595.81496807,0.00014833,2]
[355194901,1740989324507,595.81496807,0.00014844,2]
[355194903,1740989401343,300.0,0.00014851,2]
[355194904,1740989407344,163.33,0.00014059,2]
[355194905,1740989423208,176.24,0.00014042,2]
[355194950,1740989431878,-633.91785618,0.00014852,2]
[355194951,1740989431890,-277.08214382,0.00014852,2]
[355194952,1740989431901,-960.95785618,0.00014852,2]
[355194953,1740989431913,-100.04214382,0.00014852,2]
[355194954,1740989431923,-1061.0,0.00014852,2]
[355194955,1740989431934,-1061.0,0.00014852,2]
[355194956,1740989431944,-4761.88348738,0.00014854,2]
[355194957,1740989431965,-502.08704852,0.00014854,2]
[355194958,1740989431976,-1198.65,0.00014854,2]
[355194959,1740989431988,-953.44,0.00014854,2]
[355194960,1740989432003,-30672.22461442,0.00014854,2]
[355194961,1740989432014,-500.0,0.00014854,2]
[355194962,1740989432028,-595.81496807,0.00014856,2]
[355194963,1740989432038,-8500.0,0.00014856,2]
[355194964,1740989432049,-8500.0,0.00014865,2]
[355194965,1740989432060,-595.81496807,0.00014867,2]
[355194966,1740989432070,-8500.0,0.00014874,2]
[355194967,1740989432080,-595.81496807,0.00014878,2]
[355194968,1740989432090,-200.0,0.0001488,2]
[355194969,1740989432102,-8500.0,0.00014882,2]
[355194970,1740989432112,-15437.03,0.00014882,2]
[355194971,1740989432122,-3212.95,0.00014882,2]
[355194972,1740989432132,-595.81496807,0.00014889,2]
[355194973,1740989432142,-1633.431,0.0001489,2]
[355194974,1740989432152,-308.225,0.0001489,2]
[355194975,1740989432162,-8500.0,0.00014891,2]
[355194976,1740989432173,-166.54,0.00014898,2]
[355194977,1740989432183,-214.33158769,0.00014899,2]
[355194978,1740989432194,-69683.76793448,0.000149,2]
[355194979,1740989432203,-8500.0,0.000149,2]
[355194980,1740989432214,-43231.63461087,0.000149,2]
[355194981,1740989432223,-595.81496807,0.000149,2]
[355194982,1740989432232,-18845.98255206,0.000149,2]
[355194983,1740989432242,-361.24,0.00014918,2]
[355194984,1740989432251,-163.33,0.00014938,2]
[355194985,1740989432261,-500.0,0.00014973,2]
[355194986,1740989432271,-97242.5249608,0.0001499,2]
[355194987,1740989432281,-250.0,0.00014999,2]
[355194988,1740989432290,-361.24,0.00015,2]
[355194989,1740989432304,-130385.01015351,0.00015,2]
[355194990,1740989432314,-1769978.84310411,0.00015,2]
[355194991,1740989432324,-1657264.81737989,0.00015,2]
[355194992,1740989432334,-761.82519594,0.00015,2]
[355194993,1740989432344,-1559722.62683698,0.00015,2]
[355194994,1740989432354,-699204.44828706,0.00015,2]
[355194995,1740989432366,-6846.16066244,0.00015,2]
[355194997,1740989432377,-5419.58199733,0.00015,2]
[355194998,1740989432397,-6434.65070428,0.00015,2]
[355195004,1740989437794,-2013.9094565,0.00015,2]
[355195005,1740989437806,-1234.45498664,0.00015,2]
[355195006,1740989437909,-37834.76105075,0.00015,2]
[355195011,1740989438283,-10889.73574992,0.00015,2]
[355195039,1740989439794,-275979.87236742,0.00015,2]
[355195040,1740989440022,-2389.69999988,0.00015,2]
[355195041,1740989440035,-2452.45000008,0.00015,2]
[355195042,1740989440089,-562.491,0.00015,2]
[355195044,1740989441177,166.867901,0.000147,2]
[355195084,1740989445748,-2271.03620001,0.00015,2]
[355195086,1740989445760,-4633.0,0.00015,2]
[355195088,1740989445970,-651.1875,0.00015,2]
[355195093,1740989448416,-312.83508165,0.00015,2]
[355195094,1740989461535,26182.86870441,0.0001485,2]
[355195095,1740989476704,1429.3883,0.000148,2]
[355195096,1740989496166,-10000003.0,0.00027792,45]
[355195097,1740989499553,225921.70391943,0.000148,2]
[355195098,1740989524945,-10000009.0,0.00027792,45]
[355195099,1740989531850,-10000008.0,0.00027792,45]
[355195100,1740989575864,299.46517,0.0001485,2]
[355195101,1740989675499,-10000012.0,0.00027783,45]
[355195102,1740989680344,-10000013.0,0.00027783,45]
[355195103,1740989733871,4011.75085843,0.00013,2]
[355195106,1740989819478,97275.37461831,0.000148,2]
[355195107,1740989823975,-9621094.43925208,0.00027783,45]
[355195108,1740989824012,-378925.56074792,0.00027783,45]
[355195109,1740989835788,-10000021.0,0.00027783,45]
[355195110,1740989888851,732.5,0.00013146,2]
[355195111,1740989952685,2203.67271,0.0001485,2]
[355195113,1740990261305,250.0,0.00013,2]
[355195117,1740990337981,23900.0,0.00014724,2]
[355195118,1740990371771,380.6,0.00014712,2]
[355195119,1740990376431,200.0,0.00014712,2]
[355195120,1740990390261,1487.37113453,0.000148,2]
[355195123,1740990395266,1487.37113453,0.00014811,2]
[355195124,1740990400250,1487.37113453,0.00014822,2]
[355195125,1740990405243,1487.37113453,0.00014833,2]
[355195126,1740990409816,8298.741,0.00025,90]
[355195127,1740990410257,1487.37113453,0.00014844,2]
[355195128,1740990429453,206.59191129,0.000148,2]
[355195129,1740990455284,175.16447682,0.000148,2]
[355195130,1740990460253,175.1644768,0.00014833,2]
[355195131,1740990475212,1224.2288055,0.00013,15]
[355195132,1740990492600,9810.71471078,0.0002,14]
[355195141,1740990537927,169.71,0.00014526,2]
[355195146,1740990569466,222.2,0.00011278,2]
[355195147,1740990576869,2085.94824,0.0001485,2]
[355195148,1740990596471,1090.94042558,0.00014553,2]
[355195163,1740990636287,-1487.37113453,0.00014856,2]
[355195165,1740990636299,-1487.37113453,0.00014867,2]
[355195167,1740990636310,-175.1644768,0.00014867,2]
[355195169,1740990636319,-1487.37113453,0.00014878,2]
[355195171,1740990636329,-1487.37113453,0.00014889,2]
[355195173,1740990636339,-2528.121,0.00014899,2]
[355195175,1740990636348,-246.58,0.00014899,2]
[355195177,1740990636358,-500.0,0.00014899,2]
[355195179,1740990636368,-164.98370086,0.00014899,2]
[355195181,1740990636380,-500.0,0.00014899,2]
[355195183,1740990636390,-547.96881006,0.00014899,2]
[355195184,1740990636400,-500.0,0.00014899,2]
[355195185,1740990636414,-439.74190138,0.00014899,2]
[355195186,1740990636423,-1932.23924253,0.000149,2]
[355195187,1740990636439,-3777.19374894,0.000149,2]
[355195188,1740990636451,-747.34999,0.000149,2]
[355195189,1740990636462,-475.47500001,0.000149,2]
[355195190,1740990636476,-4547.26743359,0.000149,2]
[355195191,1740990636488,-7933.01844227,0.000149,2]
[355195192,1740990636500,-762.17542217,0.000149,2]
[355195193,1740990636538,-3700.0,0.000149,2]
[355195194,1740990636610,-6745.17711784,0.000149,2]
[355195195,1740990636621,-592.36206145,0.000149,2]
[355195196,1740990636665,-5066.5983412,0.000149,2]
[355195197,1740990636675,-9112.5376,0.000149,2]
[355195198,1740990636684,-507.3244,0.000149,2]
[355195199,1740990636693,-10608.0699,0.000149,2]
[355195200,1740990636702,-10659.0067,0.000149,2]
[355195201,1740990636711,-187.89297889,0.000149,2]
[355195202,1740990636721,-163.28750531,0.000149,2]
[355195203,1740990636733,-162.5427789,0.000149,2]
[355195204,1740990636742,-1814307.65843228,0.000149,2]
[355195205,1740990636754,-453.76915509,0.000149,2]
[355195206,1740990636770,-2463.44849996,0.000149,2]
[355195207,1740990636782,-2388.80000009,0.000149,2]
[355195208,1740990636793,-578.25400848,0.000149,2]
[355195209,1740990636804,-11983.20059306,0.000149,2]
[355195210,1740990636816,-9500.20658966,0.000149,2]
[355195211,1740990636831,-362.54,0.000149,2]
[355195212,1740990636842,-28601.82322522,0.000149,2]
[355195213,1740990636861,-639.900128,0.000149,2]
[355195233,1740990637987,-996.60931367,0.000149,2]
[355195234,1740990638002,-350.30767615,0.000149,2]
[355195235,1740990638017,-334.47,0.000149,2]
[355195236,1740990638316,-8893.65590373,0.000149,2]
[355195237,1740990638327,-13862.88,0.000149,2]
[355195238,1740990638350,-24846.98719672,0.000149,2]
[355195239,1740990638361,-3928.34057448,0.000149,2]
[355195240,1740990638372,-139555.70584275,0.000149,2]
[355195242,1740990638382,-1487.37113453,0.000149,2]
[355195244,1740990638391,-175.1644768,0.000149,2]
[355195246,1740990638401,-1017.0,0.000149,2]
[355195248,1740990638410,-452.98965197,0.000149,2]
[355195250,1740990638423,-281.63232084,0.000149,2]
[355195252,1740990638432,-452.98965196,0.00014908,2]
[355195254,1740990638441,-452.98965196,0.00014915,2]
[355195256,1740990638451,-500.0,0.00014973,2]
[355195259,1740990638460,-500.0,0.00014973,2]
[355195262,1740990638469,-156.12,0.00014974,2]
[355195265,1740990638481,-200.0,0.00014989,2]
[355195267,1740990638490,-151.0,0.00014991,2]
[355195269,1740990638499,-151.0,0.00014991,2]
[355195271,1740990638508,-255.91978483,0.00014991,2]
[355195273,1740990638517,-78759.32678963,0.00014999,2]
[355195275,1740990638526,-500.0,0.00014999,2]
[355195277,1740990638535,-257437.32739499,0.00015,2]
[355195279,1740990638547,-716.77292894,0.00015,2]
[355195280,1740990638558,-7984.19577546,0.00015,2]
[355195281,1740990638569,-8355.461751,0.00015,2]
[355195282,1740990638584,-1580.69026704,0.00015,2]
[355195286,1740990640027,-9609.59999992,0.00015,2]
[355195287,1740990640039,-433.944,0.00015,2]
[355195288,1740990640137,-442.90479724,0.00015,2]
[355195289,1740990640150,-1034.0,0.00015,2]
[355195290,1740990640193,-291.09336603,0.00015,2]
[355195291,1740990640251,-4555.55,0.00015,2]
[355195292,1740990640360,-416.59088653,0.00015,2]
[355195311,1740990643193,-42515.0,0.00015,2]
[355195312,1740990643268,49999.80516905,0.000148,2]
[355195313,1740990643353,-1935.89630379,0.00015,2]
[355195314,1740990643414,-8765.89560002,0.00015,2]
[355195315,1740990643426,-5907.5,0.00015,2]
[355195321,1740990645973,-341.43046266,0.00015,2]
[355195322,1740990646090,-46009.5,0.00015,2]
[355195323,1740990646198,-177178.94258467,0.00015,2]
[355195327,1740990685481,-1937.7163,0.000149,2]
[355195329,1740990748451,524.17,0.00014849,2]
[355195330,1740990806065,1017.13,0.00014732,2]
[355195331,1740990857335,150.0,0.00014751,7]
[355195332,1740990866848,150.0,0.00014792,2]
[355195334,1740990915067,799.57,0.00014771,2]
[355195345,1740990955782,250.0,0.00014787,2]
[355195350,1740991022088,-189.78705457,0.00014899,2]